Cogmind - Beta 14 @@@ ROGUE MODE // 2024.09.21 @ 20:29:30 Player: Afromullet Result: Self-destructed Performance ------------- Evolutions (1) 500 Regions Visited (3) 600 Robots Destroyed (5) 25 Value Destroyed (196) 196 Prototype IDs (0) 0 Alien Tech Used (0) 0 Bonus (0) 0 TOTAL SCORE: 1321 Bonus ------- None Cogmind --------- Core Integrity 223/400 Matter 255/300 Energy 160/160 System Corruption 0% Temperature Cool (0) Movement Walking (120) Location -9/Mines Parts ------- > --- POWER (1) -------- Light Nuclear Core > --- PROPULSION (2) --- Aluminum Leg Improved Aluminum Leg > --- UTILITY (4) ------ Small Storage Unit Structural Scanner Sensor Array Core Shielding > --- WEAPON (2) ------- Katana > --- INVENTORY (8) ---- Grenade Launcher Signal Generator Peak State ------------ > --- POWER ------------ Light Nuclear Core > --- PROPULSION ------- Aluminum Leg Improved Aluminum Leg > --- UTILITY ---------- Small Storage Unit Structural Scanner Sensor Array Core Shielding > --- WEAPON ----------- Katana > --- INVENTORY -------- Grenade Launcher [Rating: 13] Favorites ----------- Power Ion Engine Engine Ion Engine Power Core Light Nuclear Core Propulsion Compact Wheel Leg Aluminum Leg Wheel Compact Wheel Utility Small Storage Unit Device Structural Scanner Storage Small Storage Unit Protection Core Shielding Weapon Assault Rifle Energy Gun Small Laser Ballistic Gun Assault Rifle Slashing Weapon Katana Build | -11 -10 -9 -9 ------- Run | Yrd Mat Mat Min Slots Evolved 2 | . . 2 . Power . | . . . . Propulsion . | . . . . Utility 2 | . . 2 . Weapon . | . . . . Parts Attached 18 | 6 2 7 3 Power 4 | 1 1 1 1 Engine 3 | 1 1 1 . Core 1 | . . . 1 Reactor . | . . . . Propulsion 5 | 2 . 2 1 Treads . | . . . . Leg 3 | . . 2 1 Wheel 2 | 2 . . . Hover . | . . . . Flight . | . . . . Utility 4 | 1 1 1 1 Device 2 | . 1 1 . Storage 1 | 1 . . . Processor . | . . . . Hackware . | . . . . Protection 1 | . . . 1 Artifact . | . . . . Weapon 5 | 2 . 3 . Energy Gun 2 | 1 . 1 . Energy Cannon . | . . . . Ballistic Gun 2 | 1 . 1 . Ballistic Cannon . | . . . . Launcher . | . . . . Special Weapon . | . . . . Impact Weapon . | . . . . Slashing Weapon 1 | . . 1 . Piercing Weapon . | . . . . Special Melee Weapon . | . . . . Unidentified Prototypes . | . . . . Parts Lost 8 | . . 8 . Power 1 | . . 1 . Propulsion 3 | . . 3 . Utility . | . . . . Weapon 4 | . . 4 . Highest Loss Streak 5 | . . 5 . To Critical Strikes . | . . . . Average Slot Usage (%) 87 | . 94 82 88 Engine 9 | . 14 9 . Core 1 | . . . 11 Leg 5 | . . 4 22 Wheel 16 | . 28 13 . Device 17 | . 9 22 22 Storage 12 | . 14 11 11 Protection 1 | . . . 11 Energy Gun 8 | . 14 6 . Ballistic Gun 10 | . 14 11 . Slashing Weapon 3 | . . 3 11 Peak Build Rating 13 | 6 8 10 13 Average Rating 8 | 4 6 8 12 On Entrance 5 | . 6 8 7 Naked Turns . | . . . . Heaviest Build 15 | 13 14 15 15 Greatest Support 32 | 32 32 32 23 Greatest Overweight (x) 3 | . . 3 . Average Overweight (x) . | . . . . Largest Inventory Capacity 8 | 8 8 8 8 Average Capacity 7 | 6 8 8 8 Most Carried 8 | 4 8 8 3 Average Carried 5 | 2 6 6 1 Final Capacity 8 | 8 8 8 8 Final Carried 8 | 4 8 4 2 Class Distribution -------------------- 100% | Mutant Dominant Class ---------------- Mutant | -10/Materials Mutant | -9/Materials Mutant | -9/Mines Resources | -11 -10 -9 -9 ----------- Run | Yrd Mat Mat Min Matter Collected 369 | 257 56 56 . Remotely . | . . . . Salvage Created 246 | . 102 144 . Parts 10 | . 5 5 . Haulers Intercepted . | . . . . Recyclers Shooed . | . . . . Parts Field Recycled . | . . . . Retrieved Matter . | . . . . Parts Self-Destructed . | . . . . Prevented . | . . . . Kills | -11 -10 -9 -9 ------- Run | Yrd Mat Mat Min Combat Hostiles Destroyed 5 | . 2 3 . Melee 2 | . . 2 . Guns 3 | . 2 1 . Classes Destroyed 2 | . 1 1 . Grunt 4 | . 2 2 . Duelist 1 | . . 1 . Best Kill Streak 2 | . 2 1 . Combat Bots Only 2 | . 2 1 . Max Kills in Single Turn 1 | . 1 1 . Gunslinging . | . . . . Exploded . | . . . . Melee 1 | . . 1 . Uniques/NPCs Destroyed . | . . . . Combat | -11 -10 -9 -9 -------- Run | Yrd Mat Mat Min Hostile Shots Fired 90 | . 26 63 1 Missed 28 | . 8 20 . Damage Taken 971 | . 232 728 11 Core 250 | . 73 177 . Absorbed by Shields . | . . . . Core Remaining (%) 85 | 100 70 . . Volleys Fired 23 | . 11 12 . Largest 2 | . 2 2 . Hottest 60 | . 60 60 . Shots Fired 41 | . 22 19 . Gun 41 | . 22 19 . Cannon . | . . . . Launcher . | . . . . Special . | . . . . Kinetic 23 | . 11 12 . Thermal 13 | . 11 2 . Explosive . | . . . . Electromagnetic 5 | . . 5 . Robot Hit Streak 10 | . 4 10 . Robot Miss Streak 3 | . 1 3 . Penetration Max . | . . . . Secondary Targets . | . . . . Shots Hit Robots 34 | . 16 18 . Core Hits 11 | . 6 5 . Critical Kills . | . . . . Critical Parts Destroyed . | . . . . Critical Strikes 1 | . . 1 . Sever 1 | . . 1 . Melee Attacks 6 | . . 6 . Impact . | . . . . Slashing 6 | . . 6 . Piercing . | . . . . Sneak Attacks . | . . . . Combat Hostiles . | . . . . Follow-up Attacks . | . . . . Damage Inflicted 512 | . 195 317 . Guns 353 | . 195 158 . Cannons . | . . . . Explosions . | . . . . Melee 159 | . . 159 . Ramming . | . . . . Kinetic 193 | . 100 93 . Thermal 107 | . 95 12 . Explosive . | . . . . Electromagnetic 53 | . . 53 . Impact . | . . . . Slashing 159 | . . 159 . Piercing . | . . . . Highest Corruption . | . . . . Average Corruption . | . . . . Corruption Purged . | . . . . Corruption Blocked . | . . . . Overload Shots . | . . . . Overflow Damage . | . . . . Projectiles . | . . . . Explosions . | . . . . Melee . | . . . . Knockbacks . | . . . . Impact . | . . . . Kinetic . | . . . . Secondary . | . . . . Self-Inflicted Damage . | . . . . Shots . | . . . . Rammed 1 | . 1 . . Targets Rammed 1 | . 1 . . Kicked . | . . . . Crushed . | . . . . Highest Temperature 63 | . 63 . . Average Temperature 36 | . 36 . . Received Heat Transfer 345 | . 129 210 6 Siege Activations . | . . . . Robots Corrupted . | . . . . Combat Hostiles . | . . . . Parts Fried 1 | . . 1 . Impact Corruptions . | . . . . Robots Melted . | . . . . Combat Hostiles . | . . . . Parts Melted . | . . . . Heat Transferred 225 | . 200 25 . Parts Sabotaged . | . . . . Parts Stolen . | . . . . Parts Stripped . | . . . . Power Chain Reactions . | . . . . Alert | -11 -10 -9 -9 ------- Run | Yrd Mat Mat Min Peak Influence 162 | . 65 162 51 Initial 51 | . . 27 51 Average 41 | . 20 66 51 Maximum Alert Level . | . . . . Low Security (%) 100 | 100 100 100 100 Level 1 . | . . . . Level 2 . | . . . . Level 3 . | . . . . Level 4 . | . . . . Level 5 . | . . . . High Security . | . . . . Max Security . | . . . . Squads Dispatched 3 | . . 2 1 Investigation 1 | . . 1 . Extermination . | . . . . Reinforcement 1 | . . 1 . Assault 1 | . . . 1 Garrison . | . . . . Intercept . | . . . . Searches Triggered . | . . . . Construction Impeded . | . . . . Haulers Reinforced . | . . . . Active Scanning Responses . | . . . . Cargo Convoy Interrupts . | . . . . Stealth | -11 -10 -9 -9 --------- Run | Yrd Mat Mat Min Distress Signals 2 | . . 2 . Communications Jammed . | . . . . Distress Signals . | . . . . Times Spotted 22 | . 4 13 5 Peak Tracking Total 8 | . 2 8 5 Tactical Retreats 3 | . . 3 . Traps | -11 -10 -9 -9 ------- Run | Yrd Mat Mat Min Traps Triggered 1 | . . 1 . Indirectly . | . . . . Trap Hack Attempts . | . . . . Triggered . | . . . . Disarmed . | . . . . Reprogrammed . | . . . . Reused . | . . . . Traps Extracted . | . . . . Installed . | . . . . Triggered . | . . . . Machines | -11 -10 -9 -9 ---------- Run | Yrd Mat Mat Min Machines Disabled . | . . . . Max in Single Turn . | . . . . Machines Repaired . | . . . . Machines Dismantled . | . . . . Machines Sabotaged . | . . . . Overloaded Fab Kills . | . . . . Hacking | -11 -10 -9 -9 --------- Run | Yrd Mat Mat Min Machines Accessed . | . . . . Terminals . | . . . . Fabricators . | . . . . Repair Stations . | . . . . Recycling Units . | . . . . Scanalyzers . | . . . . Garrison Access . | . . . . Total Hacks . | . . . . Successful . | . . . . Failed . | . . . . Catastrophic . | . . . . Database Lockouts . | . . . . Manual . | . . . . Terminals . | . . . . Fabricators . | . . . . Repair Stations . | . . . . Recycling Units . | . . . . Scanalyzers . | . . . . Garrison Access . | . . . . Terminal Hacks . | . . . . Fabricator Hacks . | . . . . Repair Station Hacks . | . . . . Recycling Unit Hacks . | . . . . Scanalyzer . | . . . . Garrison Access Hacks . | . . . . Unauthorized Hacks . | . . . . Terminals . | . . . . Fabricators . | . . . . Repair Stations . | . . . . Recycling Units . | . . . . Scanalyzers . | . . . . Garrison Access . | . . . . Data Cores Recovered . | . . . . Used . | . . . . Hacking Detections . | . . . . Full Trace Events . | . . . . Feedback Events . | . . . . Feedback Blocked . | . . . . Robot Schematics Acquired . | . . . . Robots Built . | . . . . Authchips . | . . . . Time . | . . . . Total Robot Build Rating . | . . . . Part Schematics Acquired . | . . . . Parts Built . | . . . . Authchips . | . . . . Time . | . . . . Total Part Build Rating . | . . . . Parts Repaired . | . . . . Time . | . . . . Parts Recycled . | . . . . Recycled Matter . | . . . . Retrieved Matter . | . . . . Retrieved Components . | . . . . Parts Scanalyzed . | . . . . Part Schematics Acquired . | . . . . Parts Damaged . | . . . . Bothacking | -11 -10 -9 -9 ------------ Run | Yrd Mat Mat Min Used RIF Installer . | . . . . Robots Hacked . | . . . . Non-combat . | . . . . Combat . | . . . . Robot Hacks Applied . | . . . . Relay Couplers Released . | . . . . Fabnet Peak Effective % . | . . . . Robots Rewired . | . . . . Allies Hacked . | . . . . Hacks Repelled . | . . . . Allies | -11 -10 -9 -9 -------- Run | Yrd Mat Mat Min Total Allies 1 | . . . 1 Largest Group 1 | . . . 1 Highest-Rated Group 31 | . . . 31 Highest-Rated Ally 31 | . . . 31 Total Orders . | . . . . Ally Attacks 1 | . . . 1 Total Damage 22 | . . . 22 Kills . | . . . . Allies Corrupted . | . . . . Allies Melted . | . . . . Intel | -11 -10 -9 -9 ------- Run | Yrd Mat Mat Min Robot Analysis Total . | . . . . Derelict Logs Recovered . | . . . . Drone Launches . | . . . . Drone Recoveries . | . . . . Exploration | -11 -10 -9 -9 ------------- Run | Yrd Mat Mat Min Turns Passed 486 | 73 139 210 64 Spaces Moved 326 | 63 96 126 41 Core 7 | 4 . 3 . Treads . | . . . . Legs 67 | . . 26 41 Wheels 252 | 59 96 97 . Hover . | . . . . Flight . | . . . . Fastest Speed 50 | 50 100 100 120 Average Speed 105 | 96 100 108 120 Slowest Speed 200 | 100 100 200 120 Overloaded Moves . | . . . . Propulsion Burnouts . | . . . . Robots Hopped . | . . . . Cave-ins Triggered . | . . . . Exploration Rate (%) 15 | 4 20 19 18 Regions Visited 3 Branch Regions 1 Pre-discovered Areas . | . . . . Known Exits Taken . | . . . . Unknown Exits Taken 3 | 1 1 1 . Scrap Searched . | . . . . Spaces Dug . | . . . . Terrain Destroyed . | . . . . Melee . | . . . . Projectile . | . . . . AOE . | . . . . Terrain Rammed . | . . . . Walls Destroyed . | . . . . Machines Disabled . | . . . . Actions | -11 -10 -9 -9 --------- Run | Yrd Mat Mat Min Total 413 | 72 116 170 55 Wait 28 | . . 18 10 Move 323 | 62 95 125 41 Hop . | . . . . Pick Up 12 | 4 5 2 1 Fast Attach 8 | 6 1 1 . Attach 9 | . . 6 3 Detach . | . . . . Swap 1 | . 1 . . Drop 2 | . 2 . . Fire 23 | . 11 12 . Melee 6 | . . 6 . Ram 1 | . 1 . . Kick . | . . . . Crush . | . . . . Escape Stasis . | . . . . Rewire . | . . . . Trap . | . . . . Miscellaneous . | . . . . Route ------- -11/Scrapyard -10/Materials -9/Materials -9/Mines History --------- Turn | Location | Event 17 | -11/Scrapyard | Discovered new exit (range 15) 74 | -11/Scrapyard | Entered Materials 179 | -10/Materials | Discovered new exit (range 14) 213 | -10/Materials | Entered another Materials area 213 | -9/Materials | Evolved 2 slots: Utility x2 310 | -9/Materials | Build established: Mutant 388 | -9/Materials | Lost 5 parts (2n3w) 402 | -9/Materials | Discovered new exit (range 16) 423 | -9/Materials | Entered Mines 424 | -9/Mines | Met a Derelict testing a Signal Generator 432 | -9/Mines | Found Signal Generator 454 | -9/Mines | Lost 3 parts (1p1n1w) 487 | -9/Mines | Self-destructed Last Messages --------------- Assault Rifle destroyed. LOCATION=UNKNOWN GOAL=ESCAPE A derelict emerges from the shadows: "Quiet! I'm testing a new device we can use to divert those annoying Unaware when we need to." Signal Generator broadcasts a burst of procedurally generated transmissions. ALERT: Intercepting significant anomalous signal. Dispatching assault force. 7Y-IEI(g): "Okay, I guess that means it works. Now let's get out of here!" Acquired Signal Generator. C-30 ARC: "LOCATED POTENTIAL SOURCE OF ANOMALOUS SIGNAL. NEUTRALIZING." C-30 ARC bursts open, deploying its payload. G-47 Trooper unfolds itself. L-31 Rogue unfolds itself. G-34 Mercenary unfolds itself. I-25 Savior unfolds itself. Map ----- +----------------------------------------------------+ | ?????????????######## ###???????? | | ??????????###### ##???????? | | ??????????##### ##???????? | | ??????????## ##???????? | | ??????????## ###???????? | | ??????????## ###???????? | | ??????????## ###????????? | | ??????????### ######?????? | | ??????????########## #######????? | | ???????????######### ###????? | | ????????????????#### ##????? | | ????????????????### ##????? | | ????????????????## ###????? | | ????????????????## ###????? | | ????????????????## ###?????? | | ????????????????### ####?????? | | ????????????????### ####??####? | | ?????????????????## ####??###### | | ????????????????### ####??## ### | | ?????????????###### ###?## ## | | ????????????###### ##### ## | | ??????? ?#### #### ### | | ?????? ## #### ##? | | ?????? % ##### ##? | | ?????? #### ##? | | ??????## ? ? ?##@ ##? | | ??????### ? l g ##? | | ??????#### ## ###? | | ???????#### ##### ###? | | ????????############ ###?? | | ?????????######??###############?? | | ??????????????????#############??? | | | | | | | | | | | | | | | | | | | | | | | | | | | | | | | | | | | | | +----------------------------------------------------+ Best States ------------- Heat Dissipation 28 Energy Generation 14 Energy Capacity 250 Matter Stores 300 Matter Capacity 300 Sight Range 16 Robot Scan Range 14 Terrain Scan Density 10 Core Shielding 20 Evasion (%) 55 Item Schematics ----------------- None Robot Schematics ------------------ None Fabricated ------------ Nothing Alien Tech Used ----------------- None Achievements -------------- None Challenges ------------ None Game ------ Seed RagnarokMolecularMembrane Manual? 0 Play Time 00:05:17 Cumulative 34.0 hours Start 2024.09.21 @ 20:24:27 End 2024.09.21 @ 20:29:30 Sessions 1 Manual Loads 0 Difficulty Rogue Special Mode None Game No. 107 Rogue 100 Adventurer 7 Explorer 0 Win Type - Total 0 Types 0/0/0/0/0/0/0/0/0 Lore% 1 Gallery% 22 Achievement% 12 Wizard Run 0 Options --------- Layout 1 ASCII 0 Keyboard 0 Movement Mouse Keybinds 0 Fullscreen 0 Font 20/SmallcapsGlow Map View 64x42 Zoom Use 0% Tactical HUD 0 Map Filters NONE Filters NONE Steam 1 RUN: 1c96bc59-6373-46d4-933c-937c7f4a6146